fUSD/lending_fUSD_20240718
["ID","MTS","AMOUNT","RATE_DAILY","PERIOD"]
[332512478,1721287890841,-500.0,0.00020406,2]
[332512479,1721287890852,-500.0,0.00020406,2]
[332512480,1721287890861,-500.0,0.00020406,2]
[332512481,1721287890871,-500.0,0.00020406,2]
[332512482,1721287890880,-500.0,0.00020406,2]
[332512483,1721287890890,-500.0,0.00020406,2]
[332512484,1721287890900,-500.0,0.00020406,2]
[332512485,1721287890910,-500.0,0.00020406,2]
[332512486,1721287890919,-500.0,0.00020406,2]
[332512487,1721287890929,-500.0,0.00020406,2]
[332512488,1721287890939,-500.0,0.00020406,2]
[332512489,1721287890949,-500.0,0.00020406,2]
[332512490,1721287890959,-500.0,0.00020406,2]
[332512491,1721287890969,-500.0,0.00020406,2]
[332512492,1721287890979,-500.0,0.00020406,2]
[332512493,1721287890989,-500.0,0.00020406,2]
[332512494,1721287890999,-500.0,0.00020406,2]
[332512495,1721287891008,-500.0,0.00020406,2]
[332512496,1721287891018,-500.0,0.00020406,2]
[332512497,1721287891028,-500.0,0.00020406,2]
[332512498,1721287891037,-500.0,0.00020406,2]
[332512499,1721287891046,-500.0,0.00020406,2]
[332512500,1721287891056,-500.0,0.00020406,2]
[332512501,1721287891066,-500.0,0.00020406,2]
[332512502,1721287891075,-500.0,0.00020406,2]
[332512503,1721287891086,-500.0,0.00020406,2]
[332512504,1721287891096,-500.0,0.00020406,2]
[332512505,1721287891106,-500.0,0.00020406,2]
[332512506,1721287891116,-500.0,0.00020406,2]
[332512507,1721287891135,-500.0,0.00020406,2]
[332512508,1721287891160,-500.0,0.00020406,2]
[332512509,1721287891170,-500.0,0.00020406,2]
[332512510,1721287891180,-500.0,0.00020406,2]
[332512511,1721287891190,-500.0,0.00020406,2]
[332512512,1721287891200,-500.0,0.00020406,2]
[332512513,1721287891211,-500.0,0.00020406,2]
[332512514,1721287891221,-500.0,0.00020406,2]
[332512515,1721287891230,-500.0,0.00020406,2]
[332512516,1721287891240,-500.0,0.00020406,2]
[332512517,1721287891250,-500.0,0.00020406,2]
[332512518,1721287891260,-500.0,0.00020406,2]
[332512519,1721287891269,-500.0,0.00020406,2]
[332512520,1721287891279,-500.0,0.00020406,2]
[332512521,1721287891289,-500.0,0.00020406,2]
[332512522,1721287891299,-500.0,0.00020406,2]
[332512523,1721287891309,-500.0,0.00020406,2]
[332512524,1721287891320,-500.0,0.00020406,2]
[332512525,1721287891329,-500.0,0.00020406,2]
[332512526,1721287891341,-500.0,0.00020406,2]
[332512527,1721287891351,-500.0,0.00020406,2]
[332512528,1721287891360,-500.0,0.00020406,2]
[332512529,1721287891370,-500.0,0.00020406,2]
[332512530,1721287891380,-500.0,0.00020406,2]
[332512531,1721287891390,-500.0,0.00020406,2]
[332512532,1721287891400,-500.0,0.00020406,2]
[332512533,1721287891410,-500.0,0.00020406,2]
[332512534,1721287891420,-500.0,0.00020406,2]
[332512535,1721287891430,-500.0,0.00020406,2]
[332512536,1721287891440,-500.0,0.00020406,2]
[332512537,1721287891449,-500.0,0.00020406,2]
[332512538,1721287891459,-500.0,0.00020406,2]
[332512539,1721287891469,-500.0,0.00020406,2]
[332512540,1721287891479,-500.0,0.00020406,2]
[332512541,1721287891489,-500.0,0.00020406,2]
[332512542,1721287891499,-500.0,0.00020406,2]
[332512543,1721287891509,-500.0,0.00020406,2]
[332512544,1721287891519,-500.0,0.00020406,2]
[332512545,1721287891529,-500.0,0.00020406,2]
[332512546,1721287891538,-500.0,0.00020406,2]
[332512547,1721287891548,-500.0,0.00020406,2]
[332512548,1721287891558,-500.0,0.00020406,2]
[332512549,1721287891567,-500.0,0.00020406,2]
[332512550,1721287891578,-500.0,0.00020406,2]
[332512551,1721287891589,-166.66666666,0.00020418,2]
[332512552,1721287891599,-550.98546916,0.00020449,2]
[332512553,1721287891613,-74294.47232943,0.0002045,2]
[332512554,1721287891623,-197.82356527,0.0002045,2]
[332512555,1721287891632,-267.41464615,0.00020458,2]
[332512556,1721287891642,-151.0,0.000205,2]
[332512557,1721287891652,-151.0,0.000205,2]
[332512558,1721287891661,-192.437715,0.000205,2]
[332512559,1721287891670,-192.437706,0.000205,2]
[332512560,1721287891680,-151.0,0.000205,2]
[332512561,1721287891692,-8119.0,0.000205,2]
[332512562,1721287891703,-383.0,0.000205,2]
[332512563,1721287891715,-200.0,0.000205,2]
[332512564,1721287891725,-7323.0,0.000205,2]
[332512565,1721287891737,-795.5732791,0.000205,2]
[332512566,1721287891746,-4318.0,0.000205,2]
[332512567,1721287891757,-2000.0,0.000205,2]
[332512568,1721287891766,-500.0,0.000205,2]
[332512569,1721287891776,-600.0,0.000205,2]
[332512570,1721287891785,-325.0,0.000205,2]
[332512571,1721287891795,-1796.0,0.000205,2]
[332512572,1721287891804,-225.0,0.000205,2]
[332512573,1721287891814,-952.2,0.000205,2]
[332512574,1721287891824,-154.98095525,0.00020515,2]
[332512575,1721287891835,-166.66666666,0.00020528,2]
[332512576,1721287891845,-338.0,0.0002053,2]
[332512577,1721287891855,-252.0,0.0002053,2]
[332512578,1721287891864,-150.18315018,0.0002054,2]
[332512579,1721287891874,-249.635812,0.00020548,2]
[332512580,1721287891888,-20099.81,0.00020548,2]
[332512581,1721287891897,-172.31,0.00020548,2]
[332512582,1721287891906,-151.0,0.00020548,2]
[332512583,1721287891916,-213.60148,0.00020548,2]
[332512584,1721287891925,-256.643151,0.00020548,2]
[332512585,1721287891935,-256.643151,0.00020548,2]
[332512586,1721287891945,-222.603128,0.00020548,2]
[332512587,1721287891955,-395.839856,0.00020548,2]
[332512588,1721287891965,-222.603128,0.00020548,2]
[332512589,1721287891975,-395.839856,0.00020548,2]
[332512590,1721287891984,-10000.0,0.00020548,2]
[332512591,1721287891994,-10000.0,0.00020548,2]
[332512592,1721287892004,-151.0,0.00020548,2]
[332512593,1721287892013,-10000.0,0.00020548,2]
[332512594,1721287892022,-151.0,0.00020548,2]
[332512595,1721287892033,-151.0,0.00020548,2]
[332512596,1721287892042,-151.0,0.00020548,2]
[332512597,1721287892052,-151.0,0.00020548,2]
[332512598,1721287892063,-291.365252,0.00020548,2]
[332512599,1721287892074,-151.0,0.00020548,2]
[332512600,1721287892086,-151.0,0.00020548,2]
[332512601,1721287892095,-398.11523,0.00020548,2]
[332512602,1721287892105,-286.194983,0.00020548,2]
[332512603,1721287892114,-398.115222,0.00020548,2]
[332512604,1721287892124,-286.194983,0.00020548,2]
[332512605,1721287892133,-161.84605211,0.00020564,2]
[332512606,1721287892145,-2062.94975587,0.0002058,2]
[332512607,1721287892156,-161.35093905,0.00020605,2]
[332512608,1721287892166,-414.54398897,0.00020617,2]
[332512609,1721287892175,-160.7938371,0.00020624,2]
[332512610,1721287892184,-157.03911617,0.00020628,2]
[332512611,1721287892194,-166.66666666,0.00020646,2]
[332512612,1721287892204,-979.61,0.00020676,2]
[332512613,1721287892213,-150.0,0.00020693,2]
[332512614,1721287892223,-150.0,0.00020693,2]
[332512615,1721287892233,-150.0,0.00020693,2]
[332512616,1721287892242,-2380.0,0.00020693,2]
[332512617,1721287892252,-151.0,0.00020693,2]
[332512618,1721287892262,-151.0,0.00020693,2]
[332512619,1721287892272,-449.17565101,0.00020707,2]
[332512620,1721287892282,-166.66666666,0.00020716,2]
[332512621,1721287892292,-805.34233156,0.00020726,2]
[332512622,1721287892302,-166.66666666,0.00020753,2]
[332512623,1721287892312,-150.18315018,0.0002076,2]
[332512624,1721287892321,-414.54398897,0.00020783,2]
[332512625,1721287892331,-383.3,0.00020787,2]
[332512626,1721287892345,-166.66666666,0.00020787,2]
[332512627,1721287892354,-154.98095525,0.00020798,2]
[332512628,1721287892365,-3000.0,0.000208,2]
[332512629,1721287892374,-150.20291126,0.0002081,2]
[332512630,1721287892384,-267.41464615,0.00020812,2]
[332512631,1721287892394,-150.20291126,0.00020817,2]
[332512632,1721287892403,-414.54398897,0.00020818,2]
[332512633,1721287892413,-267.41464615,0.00020825,2]
[332512634,1721287892423,-150.18315018,0.00020835,2]
[332512635,1721287892433,-167.37,0.00020847,2]
[332512636,1721287892443,-151.42828929,0.00020849,2]
[332512637,1721287892452,-805.34233156,0.00020851,2]
[332512638,1721287892462,-157.54,0.00020863,2]
[332512639,1721287892472,-154.98095525,0.00020866,2]
[332512640,1721287892481,-9117.27396915,0.0002087,2]
[332512641,1721287892492,-197.82356527,0.00020872,2]
[332512642,1721287892503,-889.58,0.00020872,2]
[332512643,1721287892515,-166.66666666,0.00020892,2]
[332512644,1721287892524,-20146.0,0.000209,4]
[332512645,1721287892535,-3900.0,0.000209,7]
[332512646,1721287892544,-445.12807451,0.00020902,2]
[332512647,1721287892554,-163.06,0.00020922,2]
[332512648,1721287892566,-371.32697632,0.0002095,2]
[332512649,1721287892576,-157.03911617,0.00020951,2]
[332512650,1721287892587,-600.0,0.00020959,2]
[332512651,1721287892597,-220.808973,0.00020984,2]
[332512652,1721287892609,-250.191365,0.00020984,2]
[332512653,1721287892619,-703.499269,0.00020984,2]
[332512654,1721287892628,-589.541757,0.00020984,2]
[332512655,1721287892638,-171.593015,0.00020984,2]
[332512656,1721287892648,-177.128037,0.00020984,2]
[332512657,1721287892657,-211.793626,0.00020984,2]
[332512658,1721287892666,-1249.847587,0.00020984,2]
[332512659,1721287892677,-203.519477,0.00020984,2]
[332512660,1721287892687,-179.038436,0.00020984,2]
[332512661,1721287892697,-168.518599,0.00020984,2]
[332512662,1721287892706,-1213.657074,0.00020984,2]
[332512663,1721287892716,-1801.109355,0.00020984,2]
[332512664,1721287892725,-150.114819,0.00020984,2]
[332512665,1721287892735,-2196.700691,0.00020984,2]
[332512666,1721287892745,-154.135529,0.00020984,2]
[332512667,1721287892754,-168.518599,0.00020984,2]
[332512668,1721287892765,-179.038436,0.00020984,2]
[332512669,1721287892774,-3677.161735,0.00020984,2]
[332512670,1721287892784,-423.997559,0.00020984,2]
[332512671,1721287892794,-496.22166,0.00020984,2]
[332512672,1721287892804,-256.892549,0.00020984,2]
[332512673,1721287892814,-250.191365,0.00020984,2]
[332512674,1721287892824,-176.154772,0.00020984,2]
[332512675,1721287892835,-1208.02920868,0.00020988,2]
[332512676,1721287892845,-500000.0,0.00021,2]
[332512677,1721287892856,-750.91762789,0.00021,2]
[332512678,1721287892866,-151.0,0.00021,2]
[332512679,1721287892876,-256.643151,0.00021,2]
[332512680,1721287892885,-256.643145,0.00021,2]
[332512681,1721287892895,-222.603128,0.00021,2]
[332512682,1721287892904,-395.839856,0.00021,2]
[332512683,1721287892914,-222.603134,0.00021,2]
[332512684,1721287892924,-395.83985,0.00021,2]
[332512685,1721287892934,-151.0,0.00021,2]
[332512686,1721287892944,-151.0,0.00021,2]
[332512687,1721287892953,-10000.0,0.00021,2]
[332512688,1721287892963,-10000.0,0.00021,2]
[332512689,1721287892973,-277.43366,0.00021,2]
[332512690,1721287892985,-10000.0,0.00021,2]
[332512691,1721287892994,-151.0,0.00021,2]
[332512692,1721287893003,-151.0,0.00021,2]
[332512693,1721287893013,-286.194983,0.00021,2]
[332512694,1721287893113,-286.194985,0.00021,2]
[332512695,1721287893124,-500.0,0.00021001,2]
[332512696,1721287893134,-371.32697632,0.00021015,2]
[332512697,1721287893143,-414.54398897,0.00021024,2]
[332512698,1721287893153,-166.66666666,0.00021026,2]
[332512699,1721287893163,-267.41464615,0.00021035,2]
[332512700,1721287893172,-550.98546916,0.00021045,2]
[332512701,1721287893181,-449.17565101,0.00021061,2]
[332512702,1721287893191,-500.0,0.00021062,2]
[332512703,1721287893200,-500.0,0.00021062,2]
[332512704,1721287893209,-500.0,0.00021062,2]
[332512705,1721287893219,-500.0,0.00021062,2]
[332512706,1721287893229,-500.0,0.00021062,2]
[332512707,1721287893238,-500.0,0.00021062,2]
[332512708,1721287893248,-500.0,0.00021062,2]
[332512709,1721287893258,-500.0,0.00021062,2]
[332512710,1721287893268,-500.0,0.00021062,2]
[332512711,1721287893277,-500.0,0.00021062,2]
[332512712,1721287893286,-500.0,0.00021062,2]
[332512713,1721287893295,-500.0,0.00021062,2]
[332512714,1721287893304,-500.0,0.00021062,2]
[332512715,1721287893314,-500.0,0.00021062,2]
[332512716,1721287893324,-500.0,0.00021062,2]
[332512717,1721287893333,-500.0,0.00021062,2]
[332512718,1721287893343,-500.0,0.00021062,2]
[332512719,1721287893352,-500.0,0.00021062,2]
[332512720,1721287893361,-500.0,0.00021062,2]
[332512721,1721287893370,-500.0,0.00021062,2]
[332512722,1721287893379,-500.0,0.00021062,2]
[332512723,1721287893388,-500.0,0.00021062,2]
[332512724,1721287893398,-500.0,0.00021062,2]
[332512725,1721287893407,-500.0,0.00021062,2]
[332512726,1721287893417,-500.0,0.00021062,2]
[332512727,1721287893426,-500.0,0.00021062,2]
[332512728,1721287893435,-500.0,0.00021062,2]
[332512729,1721287893445,-500.0,0.00021062,2]
[332512730,1721287893454,-500.0,0.00021062,2]
[332512731,1721287893463,-500.0,0.00021062,2]
[332512732,1721287893473,-500.0,0.00021062,2]
[332512733,1721287893482,-500.0,0.00021062,2]
[332512734,1721287893491,-500.0,0.00021062,2]
[332512735,1721287893501,-500.0,0.00021062,2]
[332512736,1721287893510,-500.0,0.00021062,2]
[332512737,1721287893519,-500.0,0.00021062,2]
[332512738,1721287893529,-500.0,0.00021062,2]
[332512739,1721287893537,-500.0,0.00021062,2]
[332512740,1721287893547,-500.0,0.00021062,2]
[332512741,1721287893557,-449.17565101,0.00021062,2]
[332512742,1721287893566,-191.79781605,0.00021074,2]
[332512743,1721287893575,-934.65578593,0.0002109,2]
[332512744,1721287893586,-150.18315018,0.00021124,2]
[332512745,1721287893596,-267.41464615,0.00021144,2]
[332512746,1721287893609,-154.66033317,0.00021152,2]
[332512747,1721287893618,-166.66666666,0.00021169,2]
[332512748,1721287893627,-184.40601047,0.00021171,2]
[332512749,1721287893636,-2062.94975587,0.00021176,2]
[332512750,1721287893646,-175.02,0.00021194,2]
[332512751,1721287893657,-445.12807451,0.00021208,2]
[332512752,1721287893666,-166.6666667,0.00021212,2]
[332512753,1721287893675,-805.34233156,0.00021215,2]
[332512754,1721287893686,-161.84605211,0.00021217,2]
[332512755,1721287893696,-1152.0,0.00021237,2]
[332512756,1721287893705,-934.65578593,0.00021238,2]
[332512757,1721287893715,-550.98546916,0.00021239,2]
[332512758,1721287893724,-934.65578593,0.00021242,2]
[332512759,1721287893734,-934.65578593,0.00021244,2]
[332512760,1721287893743,-400.0,0.00021245,2]
[332512761,1721287893752,-166.66666666,0.00021245,2]
[332512762,1721287893762,-703.499269,0.00021246,2]
[332512763,1721287893771,-589.541757,0.00021246,2]
[332512764,1721287893780,-1249.847587,0.00021246,2]
[332512765,1721287893790,-1213.657074,0.00021246,2]
[332512766,1721287893799,-1801.109355,0.00021246,2]
[332512767,1721287893809,-150.114819,0.00021246,2]
[332512768,1721287893819,-2196.700691,0.00021246,2]
[332512769,1721287893828,-154.135529,0.00021246,2]
[332512770,1721287893839,-3677.161735,0.00021246,2]
[332512771,1721287893848,-423.997559,0.00021246,2]
[332512772,1721287893858,-496.22166,0.00021246,2]
[332512773,1721287893868,-550.98546916,0.00021257,2]
[332512774,1721287893877,-805.34233156,0.00021257,2]
[332512775,1721287893887,-550.98546916,0.00021262,2]
[332512776,1721287893896,-371.32697632,0.00021272,2]
[332512777,1721287893906,-2062.94975587,0.00021281,2]
[332512778,1721287893915,-550.98546916,0.00021292,2]
[332512779,1721287893924,-151.42828929,0.00021292,2]
[332512780,1721287893933,-157.03911617,0.000213,2]
[332512781,1721287893943,-934.65578593,0.00021311,2]
[332512782,1721287893952,-2062.94975587,0.00021343,2]
[332512783,1721287893962,-166.66666666,0.00021355,2]
[332512784,1721287893971,-414.54398897,0.00021365,2]
[332512785,1721287893981,-5899.09,0.0002137,2]
[332512786,1721287893990,-249.635812,0.0002137,2]
[332512787,1721287893999,-180.0,0.00021397,2]
[332512788,1721287894009,-150.18315018,0.00021405,2]
[332512789,1721287894018,-151.42828929,0.00021465,2]
[332512790,1721287894028,-400.0,0.0002147,2]
[332512791,1721287894037,-161.84605211,0.00021474,2]
[332512792,1721287894046,-383.3,0.00021489,2]
[332512793,1721287894055,-979.61,0.00021498,2]
[332512794,1721287894064,-161.84605211,0.00021499,2]
[332512795,1721287894074,-171.593015,0.00021508,2]
[332512796,1721287894085,-177.128037,0.00021508,2]
[332512797,1721287894094,-168.518599,0.00021508,2]
[332512798,1721287894103,-179.038436,0.00021508,2]
[332512799,1721287894112,-703.499269,0.00021508,2]
[332512800,1721287894122,-589.541757,0.00021508,2]
[332512801,1721287894131,-1249.847587,0.00021508,2]
[332512802,1721287894141,-1213.657074,0.00021508,2]
[332512803,1721287894150,-1801.109355,0.00021508,2]
[332512804,1721287894159,-150.114819,0.00021508,2]
[332512805,1721287894168,-2196.700691,0.00021508,2]
[332512806,1721287894178,-154.135529,0.00021508,2]
[332512807,1721287894187,-3677.161735,0.00021508,2]
[332512808,1721287894196,-423.997559,0.00021508,2]
[332512809,1721287894205,-496.22166,0.00021508,2]
[332512810,1721287894215,-400.0,0.0002151,2]
[332512811,1721287894224,-414.54398897,0.00021513,2]
[332512812,1721287894233,-524.53,0.00021514,2]
[332512813,1721287894243,-2062.94975587,0.00021515,2]
[332512814,1721287894253,-934.65578593,0.00021517,2]
[332512815,1721287894262,-293.11440392,0.00021534,2]
[332512816,1721287894272,-166.66666666,0.00021555,2]
[332512817,1721287894282,-166.66666666,0.00021557,2]
[332512818,1721287894291,-934.65578593,0.00021577,2]
[332512819,1721287894301,-1000.0,0.00021585,2]
[332512820,1721287894310,-414.54398897,0.00021629,2]
[332512821,1721287894320,-186.77256119,0.00021637,2]
[332512822,1721287894329,-167.26,0.00021644,2]
[332512823,1721287894340,-885.76,0.00021644,2]
[332512824,1721287894350,-155.17,0.00021644,2]
[332512825,1721287894359,-152.83,0.00021644,2]
[332512826,1721287894368,-449.17565101,0.00021661,2]
[332512827,1721287894377,-805.34233156,0.00021667,2]
[332512828,1721287894386,-445.12807451,0.00021668,2]
[332512829,1721287894396,-449.17565101,0.00021678,2]
[332512830,1721287894405,-157.03911617,0.00021678,2]
[332512831,1721287894415,-157.03911617,0.00021684,2]
[332512832,1721287894425,-449.17565101,0.00021692,2]
[332512833,1721287894434,-161.84605211,0.00021696,2]
[332512834,1721287894444,-2062.94975587,0.00021698,2]
[332512835,1721287894454,-538783.78349349,0.000217,7]
[332512836,1721287894463,-281523.06967143,0.000217,2]
[332512837,1721287894472,-449.17565101,0.00021705,2]
[332512838,1721287894481,-157.03911617,0.00021721,2]
[332512839,1721287894491,-166.66666666,0.00021745,2]
[332512840,1721287894500,-550.98546916,0.00021748,2]
[332512841,1721287894509,-267.41464615,0.00021749,2]
[332512842,1721287894518,-160.7938371,0.00021768,2]
[332512843,1721287894528,-703.499269,0.00021771,2]
[332512844,1721287894537,-589.541757,0.00021771,2]
[332512845,1721287894547,-1249.847587,0.00021771,2]
[332512846,1721287894557,-1213.657074,0.00021771,2]
[332512847,1721287894567,-1801.109355,0.00021771,2]
[332512848,1721287894577,-150.114819,0.00021771,2]
[332512849,1721287894587,-2196.700691,0.00021771,2]
[332512850,1721287894597,-154.135529,0.00021771,2]
[332512851,1721287894610,-3677.161735,0.00021771,2]
[332512852,1721287894620,-423.997559,0.00021771,2]
[332512853,1721287894629,-496.22166,0.00021771,2]
[332512854,1721287894639,-414.54398897,0.00021814,2]
[332512855,1721287894648,-371.32697632,0.00021826,2]
[332512856,1721287894657,-600.0,0.00021832,2]
[332512857,1721287894667,-154.98095525,0.00021853,2]
[332512858,1721287894677,-157.03911617,0.00021863,2]
[332512859,1721287894688,-70000.0,0.0002187,4]
[332512860,1721287894698,-166.66666666,0.00021883,2]
[332512861,1721287894708,-166.66666666,0.00021892,2]
[332512862,1721287894717,-700.0,0.000219,7]
[332512863,1721287894727,-2062.94975587,0.000219,2]
[332512864,1721287894737,-214.57357516,0.00021916,2]
[332512865,1721287894746,-156.82635243,0.00021917,2]
[332512866,1721287894756,-1548.92,0.00021917,2]
[332512867,1721287894766,-242.457701,0.00021917,2]
[332512868,1721287894776,-500.0,0.00021917,2]
[332512869,1721287894785,-500.0,0.00021917,2]
[332512870,1721287894795,-500.0,0.00021917,2]
[332512871,1721287894804,-399.52486348,0.00021917,2]
[332512872,1721287894814,-500.0,0.00021917,2]
[332512873,1721287894824,-500.0,0.00021917,2]
[332512874,1721287894834,-473.57089504,0.00021917,2]
[332512875,1721287894845,-500.0,0.00021917,2]
[332512876,1721287894856,-573.18060928,0.00021917,2]
[332512877,1721287894869,-500.0,0.00021917,2]
[332512878,1721287894879,-500.0,0.00021917,2]
[332512879,1721287894889,-500.0,0.00021917,2]
[332512880,1721287894899,-500.0,0.00021917,2]
[332512881,1721287894909,-500.0,0.00021917,2]
[332512882,1721287894919,-500.0,0.00021917,2]
[332512883,1721287894929,-500.0,0.00021917,2]
[332512884,1721287894939,-180.09035517,0.00021917,2]
[332512885,1721287894949,-500.0,0.00021917,2]
[332512886,1721287894959,-500.0,0.00021917,2]
[332512887,1721287894969,-500.0,0.00021917,2]
[332512888,1721287894978,-500.0,0.00021917,2]
[332512889,1721287894988,-500.0,0.00021917,2]
[332512890,1721287894998,-500.0,0.00021917,2]
[332512891,1721287895008,-500.0,0.00021917,2]
[332512892,1721287895018,-500.0,0.00021917,2]
[332512893,1721287895028,-500.0,0.00021917,2]
[332512894,1721287895038,-500.0,0.00021917,2]
[332512895,1721287895050,-500.0,0.00021917,2]
[332512896,1721287895059,-232.46190706,0.00021917,2]
[332512897,1721287895071,-500.0,0.00021917,2]
[332512898,1721287895081,-500.0,0.00021917,2]
[332512899,1721287895091,-500.0,0.00021917,2]
[332512900,1721287895100,-500.0,0.00021917,2]
[332512901,1721287895111,-500.0,0.00021917,2]
[332512902,1721287895121,-500.0,0.00021917,2]
[332512903,1721287895131,-500.0,0.00021917,2]
[332512904,1721287895140,-500.0,0.00021917,2]
[332512905,1721287895150,-500.0,0.00021917,2]
[332512906,1721287895160,-500.0,0.00021917,2]
[332512907,1721287895170,-421.48620518,0.00021917,2]
[332512908,1721287895180,-500.0,0.00021917,2]
[332512909,1721287895192,-500.0,0.00021917,2]
[332512910,1721287895201,-373.33929052,0.00021917,2]
[332512911,1721287895211,-500.0,0.00021917,2]
[332512912,1721287895222,-500.0,0.00021917,2]
[332512913,1721287895232,-500.0,0.00021917,2]
[332512914,1721287895242,-500.0,0.00021917,2]
[332512915,1721287895252,-500.0,0.00021917,2]
[332512916,1721287895262,-500.0,0.00021917,2]
[332512917,1721287895272,-500.0,0.00021917,2]
[332512918,1721287895281,-500.0,0.00021917,2]
[332512919,1721287895291,-500.0,0.00021917,2]
[332512920,1721287895302,-500.0,0.00021917,2]
[332512921,1721287895311,-500.0,0.00021917,2]
[332512922,1721287895320,-500.0,0.00021917,2]
[332512923,1721287895330,-500.0,0.00021917,2]
[332512924,1721287895341,-206.20036301,0.00021917,2]
[332512925,1721287895351,-500.0,0.00021917,2]
[332512926,1721287895361,-500.0,0.00021917,2]
[332512927,1721287895371,-500.0,0.00021917,2]
[332512928,1721287895385,-500.0,0.00021917,2]
[332512929,1721287895395,-500.0,0.00021917,2]
[332512930,1721287895405,-500.0,0.00021917,2]
[332512931,1721287895416,-500.0,0.00021917,2]
[332512932,1721287895425,-500.0,0.00021917,2]
[332512933,1721287895436,-500.0,0.00021917,2]
[332512934,1721287895447,-1276.87010162,0.00021917,2]
[332512935,1721287895459,-500.0,0.00021917,2]
[332512936,1721287895468,-903.45,0.00021917,2]
[332512937,1721287895480,-500.0,0.00021917,2]
[332512938,1721287895491,-531.52674825,0.00021917,2]
[332512939,1721287895502,-500.0,0.00021917,2]
[332512940,1721287895511,-500.0,0.00021917,2]
[332512941,1721287895522,-645.35997885,0.00021917,2]
[332512942,1721287895532,-500.0,0.00021917,2]
[332512943,1721287895543,-610.6939417,0.00021917,2]
[332512944,1721287895553,-500.0,0.00021917,2]
[332512945,1721287895565,-500.0,0.00021917,2]
[332512946,1721287895575,-500.0,0.00021917,2]
[332512947,1721287895586,-873.73,0.00021917,2]
[332512948,1721287895597,-500.0,0.00021917,2]
[332512949,1721287895609,-500.0,0.00021917,2]
[332512950,1721287895620,-500.0,0.00021917,2]
[332512951,1721287895630,-500.0,0.00021917,2]
[332512952,1721287895640,-500.0,0.00021917,2]
[332512953,1721287895652,-500.0,0.00021917,2]
[332512954,1721287895663,-500.0,0.00021917,2]
[332512955,1721287895673,-500.0,0.00021917,2]
[332512956,1721287895685,-500.0,0.00021917,2]
[332512957,1721287895697,-500.0,0.00021917,2]
[332512958,1721287895707,-500.0,0.00021917,2]
[332512959,1721287895717,-1146.78,0.00021917,2]
[332512960,1721287895726,-532.27140541,0.00021917,2]
[332512961,1721287895737,-500.0,0.00021917,2]
[332512962,1721287895747,-500.0,0.00021917,2]
[332512963,1721287895757,-500.0,0.00021917,2]
[332512964,1721287895768,-500.0,0.00021917,2]
[332512965,1721287895778,-500.0,0.00021917,2]
[332512966,1721287895788,-500.0,0.00021917,2]
[332512967,1721287895798,-500.0,0.00021917,2]
[332512968,1721287895808,-500.0,0.00021917,2]
[332512969,1721287895818,-755.65,0.00021917,2]
[332512970,1721287895828,-500.0,0.00021917,2]
[332512971,1721287895839,-500.0,0.00021917,2]
[332512972,1721287895849,-500.0,0.00021917,2]
[332512973,1721287895858,-500.0,0.00021917,2]
[332512974,1721287895868,-500.0,0.00021917,2]
[332512975,1721287895879,-500.0,0.00021917,2]
[332512976,1721287895889,-500.0,0.00021917,2]
[332512977,1721287895899,-500.0,0.00021917,2]